{"text_format":"1","workbook":"xlsx","n_sheets":2,"sheets":["Лист1","Не трогать"],"not_rendered":{"charts":0,"images":0,"macros":1,"external_links":0,"defined_names":0,"comments":0,"pivot_tables":0},"unopened":[],"bounds":{"document_bytes":16777216,"sheet_cells":100000,"rows_first":2000,"rows_last":500,"rows_between":2000,"halvings":0,"cell_chars":16384,"cell_head_chars":4096},"cells_cut":0,"cells_raw":0,"read":"whole","date_system":"1900"}

{"sheet":"Лист1","index":0,"n_rows":21,"n_cols":7,"rows_kept":21,"cut":false,"hidden":false,"merged":[]}
["Наименование","Артикул","Закупочная цена","Назначение","Цвет","Ширина","Высота"]
["Товар первый 27,5*2 ааа",null,null,{"$f":"IFERROR(LOOKUP(,-SEARCH('Не трогать'!A$1:A$11,A2),'Не трогать'!A$1:A$11),\"\")","v":""},{"$f":"IFERROR(LOOKUP(,-SEARCH('Не трогать'!B$1:B$25,A2),'Не трогать'!B$1:B$25),\"\")","v":""},{"$f":"UQC1(A2)","v":{"$error":"#REF!"}},{"$f":"_uuu2(A2)","v":{"$error":"#NAME?"}}]
["Товар второй 27,5*6,2 траляля",null,null,{"$f":"IFERROR(LOOKUP(,-SEARCH('Не трогать'!A$1:A$11,A3),'Не трогать'!A$1:A$11),\"\")","v":""},{"$f":"IFERROR(LOOKUP(,-SEARCH('Не трогать'!B$1:B$25,A3),'Не трогать'!B$1:B$25),\"\")","v":""},{"$f":"_uuu1(A3)","v":{"$error":"#NAME?"}},{"$f":"_uuu2(A3)","v":{"$error":"#NAME?"}}]
["40*8,4",null,null,{"$f":"IFERROR(LOOKUP(,-SEARCH('Не трогать'!A$1:A$11,A4),'Не трогать'!A$1:A$11),\"\")","v":""},{"$f":"IFERROR(LOOKUP(,-SEARCH('Не трогать'!B$1:B$25,A4),'Не трогать'!B$1:B$25),\"\")","v":""},{"$error":"#NAME?"},{"$f":"_uuu2(A4)","v":{"$error":"#NAME?"}}]
["Третий товар 25x33x0,7 qreB002",null,null,{"$f":"IFERROR(LOOKUP(,-SEARCH('Не трогать'!A$1:A$11,A5),'Не трогать'!A$1:A$11),\"\")","v":""},{"$f":"IFERROR(LOOKUP(,-SEARCH('Не трогать'!B$1:B$25,A5),'Не трогать'!B$1:B$25),\"\")","v":""},{"$error":"#NAME?"},{"$f":"_uuu2(A5)","v":{"$error":"#NAME?"}}]
["Четвёртый товар темно-синий 25x33x0,7 1qqqB008",null,null,{"$f":"IFERROR(LOOKUP(,-SEARCH('Не трогать'!A$1:A$11,A6),'Не трогать'!A$1:A$11),\"\")","v":""},{"$f":"IFERROR(LOOKUP(,-SEARCH('Не трогать'!B$1:B$25,A6),'Не трогать'!B$1:B$25),\"\")","v":"Синий"},{"$error":"#NAME?"},{"$error":"#NAME?"}]
[null,null,null,null,null,{"$f":"_uuu1(A7)","v":{"$error":"#NAME?"}},{"$error":"#NAME?"}]
[null,null,null,null,null,{"$error":"#NAME?"},{"$error":"#NAME?"}]
[null,null,null,null,null,{"$error":"#NAME?"},{"$error":"#NAME?"}]
[null,null,null,null,null,{"$error":"#NAME?"},{"$error":"#NAME?"}]
[null,null,null,null,null,{"$error":"#NAME?"},{"$error":"#NAME?"}]
[null,null,null,null,null,{"$error":"#NAME?"},{"$error":"#NAME?"}]
[null,null,null,null,null,{"$error":"#NAME?"},{"$error":"#NAME?"}]
[null,null,null,null,null,{"$error":"#NAME?"},{"$error":"#NAME?"}]
[null,null,null,null,null,{"$error":"#NAME?"},{"$error":"#NAME?"}]
[null,null,null,null,null,{"$error":"#NAME?"},{"$error":"#NAME?"}]
[null,null,null,null,null,{"$f":"_uuu1(A17)","v":{"$error":"#NAME?"}},{"$error":"#NAME?"}]
[null,null,null,null,null,{"$error":"#NAME?"},{"$error":"#NAME?"}]
[null,null,null,null,null,{"$error":"#NAME?"},{"$error":"#NAME?"}]
[null,null,null,null,null,{"$error":"#NAME?"},{"$error":"#NAME?"}]
[null,null,null,null,null,{"$error":"#NAME?"},{"$error":"#NAME?"}]

{"sheet":"Не трогать","index":1,"n_rows":25,"n_cols":2,"rows_kept":25,"cut":false,"hidden":false,"merged":[]}
["Назначение","Цвет"]
["Настенная плитка","Бежевый"]
["Напольная плитка","Многоцветный"]
["Строительная плитка","Коричневый"]
["Декор","Серый"]
["Бордюр","Зелёный"]
["Плинтус","Розовый"]
["Карандаш","Белый"]
["Панно","Чёрный"]
["Мозаика","Жёлтый"]
["Вставка","Красный"]
[null,"Синий"]
[null,"Золотой"]
[null,"Рыжий"]
[null,"Платина"]
[null,"Салатовый"]
[null,"Оранжевый"]
[null,"Голубой"]
[null,"Сиреневый"]
[null,"Светлый"]
[null,"Лиловый"]
[null,"Фиолетовый"]
[null,"Металл"]
[null,"Салатный"]
[null,"Охра"]